{"text_format":"3","workbook":"xlsx","n_sheets":1,"sheets":["PRICING SCHEDULE"],"not_rendered":{"images":1,"defined_names":3},"read":"whole","date_system":"1900"}

{"sheet":"PRICING SCHEDULE","index":0,"n_rows":31,"n_cols":17,"rows_kept":31,"merged":[[12,2,12,3],[13,2,13,3],[13,5,15,5],[14,2,14,3],[15,2,15,3],[17,4,17,6],[17,7,17,9],[17,10,17,12],[27,1,30,1],[27,2,27,3],[27,4,27,5],[28,2,28,3],[29,2,29,3],[29,4,29,5],[30,2,30,3],[30,4,30,5]]}
[null,"SUPPLY CHAIN MANAGEMENT"]
[null,"Pricing schedule"]
["RFB No","RFB 3219/2025 - RFB 174011 (ERP)"]
["RFB Title","Procurement of Penetration Testing solution for SITA SOC and Clients for a period of three (3) years, licenses, upgrades, maintenance and support "]
["Bidder Name "]
[]
["1. INSTRUCTION FOR COMPLETING THE PRICING SCHEDULE"]
["(a)  Bidder must complete/enter YELLOW cells only"]
["(b)  Unit and Line prices must be VAT EXCLUSIVE and in South African Rand (ZAR) currency."]
["(c) The price must include all cost to deliver the goods or render the service, including all applicable taxes, duty fees, logistics/delivery, storage, labour, overtime and subsistance and travel"]
["(d)  Prices that are dependent on Rate of Exchange (ROE) must use ROE indicated below, then enter in Column \"Forex %\" the percentage of the price that is ROE dependent (0% means the price is not ROE dependent)"]
[]
[null,"Foreign currency"]
[null,"1 US Dollar",{"v":18.28,"d":"R18.28"},null,null,"Mark with an X, which ROE is applicable"]
[null,"1 Euro",{"v":19.79,"d":"R19.79"}]
[null,"1 Pound (UK)",{"v":22.51,"d":"R22.51"}]
[]
[{"$nulls":4},"YEAR 1",null,null,"YEAR 2",null,null,"YEAR 3",null,null,"TOTAL"]
["Item No","Goods/Service description","Unit of measure","Forex %","Qty ","Unit Price \n(Excl VAT)","Line Price Y1","Qty","Unit Price \n(Excl VAT)","Line Price Y2","Qty","Unit Price \n(Excl VAT)","Line Price Y3","Line Price Term \n(Excl VAT)","Forex Price portion","BRAND / MODEL","Price clarification comment"]
[1,"Penetration Testing ",{"$nulls":4},{"$f":"SUBTOTAL(9,G21:G22)","v":0},{"$nulls":5},{"$f":"SUBTOTAL(9,M22:M22)","v":0},{"$f":"SUBTOTAL(9,N22:N22)","v":0},{"$f":"D210","v":0}]
["1.1","Penetration Testing Solution","Once Off",{"v":0,"d":"0%"},1,0,{"$f":"E21*F21","v":0}]
["1.2","Maintenance and support  for 36 months","Monthly",{"v":0,"d":"0%"},12,0,0,12,0,{"$f":"H22*I22","v":0},12,0,{"$f":"K22*L22","v":0},{"$f":"SUM(G22,J22,M22)","v":0},{"$f":"D22*N22","v":0}]
[null,"TOTAL BID PRICE  (EXCL VAT)",{"$nulls":4},{"$f":"SUBTOTAL(9,G20:G22)","v":0},null,null,{"$f":"SUBTOTAL(9,J20:J22)","v":0},null,null,{"$f":"SUBTOTAL(9,M20:M22)","v":0},{"$f":"SUBTOTAL(9,N20:N22)","v":0},{"$f":"SUBTOTAL(9,O20:O22)","v":0}]
[null,"VAT (@15%)",{"$nulls":4},{"$f":"G23*0.15","v":0},null,null,{"$f":"J23*0.15","v":0},null,null,{"$f":"M23*0.15","v":0},{"$f":"N23*0.15","v":0}]
[null,"TOTAL  BID PRICE (INCL VAT)",{"$nulls":4},{"$f":"G23+G24","v":0},null,null,{"$f":"J23+J24","v":0},null,null,{"$f":"M23+M24","v":0},{"$f":"N23+N24","v":0}]
[]
[]
[null,"I, the bidder, confirm that the price(s) and rate(s) quoted cover all the goods and/or works specified in the bidding documents; that the price(s) or rate(s) cover all my obligations and I accept that any mistakes regarding price(s), rate(s) or calculations will be at my own risk.\n[Note: First convert to PDF, then add signature]"]
[null,null,"Name",null,"Capacity"]
[]
[null,null,"Signature (above)",null,"Date"]